[Event "NJSK 2018 Jeugd B"]
[Site "Assen, Netherlands"]
[Date "2018.04.29"]
[Round "1.5"]
[White "Cchung, Chi Yun"]
[Black "Kouwenhoven, Derk"]
[Result "0-1"]
[TimeControl "40/90m+30m+30sec/move"]
[WhiteElo "1783"]
[BlackElo "2091"]

1. e4 {[%clk 01:30:56]} {[%emt 00:00:05]} e5 {[%clk 01:30:52]} {[%emt
00:00:10]} 2. Nf3 {[%clk 01:31:19]} {[%emt 00:00:06]} Nc6 {[%clk 01:31:11]}
{[%emt 00:00:13]} 3. Bb5 {[%clk 01:31:42]} {[%emt 00:00:05]} a6 {[%clk
01:31:02]} {[%emt 00:00:38]} 4. Ba4 {[%clk 01:31:42]} {[%emt 00:00:30]} Nf6
{[%clk 01:31:17]} {[%emt 00:00:15]} 5. O-O {[%clk 01:31:54]} {[%emt 00:00:18]}
Be7 {[%clk 01:31:34]} {[%emt 00:00:13]} 6. Re1 {[%clk 01:32:15]} {[%emt
00:00:09]} b5 {[%clk 01:31:52]} {[%emt 00:00:12]} 7. Bb3 {[%clk 01:32:35]}
{[%emt 00:00:10]} O-O {[%clk 01:32:16]} {[%emt 00:00:06]} 8. c3 {[%clk
01:32:10]} {[%emt 00:00:55]} d6 {[%clk 01:30:10]} {[%emt 00:02:36]} 9. h3
{[%clk 01:30:40]} {[%emt 00:02:00]} Nb8 {[%clk 01:30:22]} {[%emt 00:00:18]} 10.
d4 {[%clk 01:30:01]} {[%emt 00:01:09]} Nbd7 {[%clk 01:30:30]} {[%emt 00:00:23]}
11. Nbd2 {[%clk 01:29:45]} {[%emt 00:00:44]} c5 {[%clk 01:27:27]} {[%emt
00:03:34]} 12. Nf1 {[%clk 01:27:44]} {[%emt 00:02:31]} Bb7 {[%clk 01:25:24]}
{[%emt 00:02:33]} 13. Ng3 {[%clk 01:26:20]} {[%emt 00:01:53]} Re8 {[%clk
01:24:22]} {[%emt 00:01:33]} 14. Bc2 {[%clk 01:18:21]} {[%emt 00:08:29]} Bf8
{[%clk 01:23:33]} {[%emt 00:01:19]} 15. b3 {[%clk 01:14:22]} {[%emt 00:04:29]}
g6 {[%clk 01:19:26]} {[%emt 00:04:37]} 16. Bb2 {[%clk 01:11:35]} {[%emt
00:03:17]} Qc7 {[%clk 01:15:39]} {[%emt 00:04:17]} 17. Bd3 {[%clk 01:01:21]}
{[%emt 00:10:43]} c4 {[%clk 01:11:06]} {[%emt 00:05:03]} 18. Bc2 {[%clk
00:53:32]} {[%emt 00:08:19]} d5 {[%clk 00:59:10]} {[%emt 00:12:27]} 19. exd5
{[%clk 00:44:45]} {[%emt 00:09:16]} Nxd5 {[%clk 00:56:28]} {[%emt 00:03:13]} 20.
bxc4 {[%clk 00:38:05]} {[%emt 00:07:10]} bxc4 {[%clk 00:56:21]} {[%emt
00:00:36]} 21. Ba4 {[%clk 00:37:25]} {[%emt 00:01:10]} N5b6 {[%clk 00:54:24]}
{[%emt 00:02:27]} 22. Nxe5 {[%clk 00:29:28]} {[%emt 00:08:27]} Nxa4 {[%clk
00:53:18]} {[%emt 00:01:36]} 23. Qxa4 {[%clk 00:29:42]} {[%emt 00:00:16]} Nxe5
{[%clk 00:52:20]} {[%emt 00:01:28]} 24. Rxe5 {[%clk 00:27:19]} {[%emt
00:02:53]} Rxe5 {[%clk 00:48:43]} {[%emt 00:04:07]} 25. dxe5 {[%clk 00:26:55]}
{[%emt 00:00:54]} Bg7 {[%clk 00:48:53]} {[%emt 00:00:20]} 26. Nf1 {[%clk
00:20:36]} {[%emt 00:06:48]} Bxg2 {[%clk 00:44:41]} {[%emt 00:04:44]} 27. Kxg2
{[%clk 00:13:49]} {[%emt 00:07:16]} Qb7+ {[%clk 00:45:06]} {[%emt 00:00:05]} 28.
Kg1 {[%clk 00:14:10]} {[%emt 00:00:09]} Qxb2 {[%clk 00:45:31]} {[%emt
00:00:06]} 29. Rd1 {[%clk 00:14:01]} {[%emt 00:00:38]} Qxc3 {[%clk 00:45:24]}
{[%emt 00:00:38]} 30. Qc6 {[%clk 00:13:57]} {[%emt 00:00:34]} Rf8 {[%clk
00:45:25]} {[%emt 00:00:28]} 31. Ne3 {[%clk 00:12:50]} {[%emt 00:01:37]} Bxe5
{[%clk 00:36:56]} {[%emt 00:09:00]} 32. Qxa6 {[%clk 00:11:46]} {[%emt
00:01:34]} Bb8 {[%clk 00:27:38]} {[%emt 00:09:48]} 33. Qxc4 {[%clk 00:10:54]}
{[%emt 00:01:21]} Qe5 {[%clk 00:28:05]} {[%emt 00:00:03]} 34. Ng4 {[%clk
00:10:37]} {[%emt 00:00:48]} Qg7 {[%clk 00:24:48]} {[%emt 00:03:46]} 35. Qd4
{[%clk 00:05:55]} {[%emt 00:05:12]} Qxd4 {[%clk 00:24:33]} {[%emt 00:00:46]} 36.
Rxd4 {[%clk 00:06:20]} {[%emt 00:00:05]} f5 {[%clk 00:24:59]} {[%emt 00:00:04]}
37. Ne3 {[%clk 00:06:34]} {[%emt 00:00:15]} Re8 {[%clk 00:21:51]} {[%emt
00:03:38]} 38. a4 {[%clk 00:04:47]} {[%emt 00:02:17]} Ba7 {[%clk 00:19:52]}
{[%emt 00:02:30]} 39. Rd3 {[%clk 00:04:55]} {[%emt 00:00:21]} Kf8 {[%clk
00:17:29]} {[%emt 00:02:53]} 40. Kg2 {[%clk 00:04:05]} {[%emt 00:01:20]} Re4
{[%clk 00:12:15]} {[%emt 00:05:44]} 41. Rd8+ {[%clk 00:01:42]} {[%emt
00:02:53]} Ke7 {[%clk 00:12:06]} {[%emt 00:00:40]} 42. Rh8 {[%clk 00:02:05]}
{[%emt 00:00:06]} Bxe3 {[%clk 00:11:41]} {[%emt 00:00:55]} 43. Rxh7+ {[%clk
00:02:29]} {[%emt 00:00:06]} Kf6 {[%clk 00:12:05]} {[%emt 00:00:06]} 44. fxe3
{[%clk 00:02:53]} {[%emt 00:00:06]} Rxe3 {[%clk 00:12:19]} {[%emt 00:00:17]} 45.
a5 {[%clk 00:01:54]} {[%emt 00:01:29]} Ra3 {[%clk 00:11:40]} {[%emt 00:01:09]}
46. Ra7 {[%clk 00:02:20]} {[%emt 00:00:04]} g5 {[%clk 00:09:43]} {[%emt
00:02:27]} 47. a6 {[%clk 00:01:51]} {[%emt 00:00:58]} Ke5 {[%clk 00:09:39]}
{[%emt 00:00:34]} 48. Ra8 {[%clk 00:01:06]} {[%emt 00:01:15]} Kf4 {[%clk
00:09:20]} {[%emt 00:00:49]} 49. a7 {[%clk 00:00:41]} {[%emt 00:00:54]} Ra2+
{[%clk 00:09:44]} {[%emt 00:00:07]} 50. Kf1 {[%clk 00:00:50]} {[%emt 00:00:20]}
Kf3 {[%clk 00:08:45]} {[%emt 00:01:30]} 51. Ke1 {[%clk 00:00:58]} {[%emt
00:00:22]} f4 {[%clk 00:08:11]} {[%emt 00:01:04]} 52. Rg8 {[%clk 00:28:52]}
{[%emt 00:02:35]} Ra1+ {[%clk 00:37:20]} {[%emt 00:01:22]} 53. Kd2 {[%clk
00:29:09]} {[%emt 00:00:13]} Rxa7 {[%clk 00:37:46]} {[%emt 00:00:04]} 54. Rxg5
{[%clk 00:29:33]} {[%emt 00:00:06]} Rh7 {[%clk 00:37:45]} {[%emt 00:00:32]} 55.
Kd1 {[%clk 00:27:59]} {[%emt 00:02:03]} Rxh3 {[%clk 00:38:01]} {[%emt
00:00:14]} 56. Rg8 {[%clk 00:26:57]} {[%emt 00:01:32]} Kf2 {[%clk 00:37:36]}
{[%emt 00:00:55]} 57. Kd2 {[%clk 00:26:47]} {[%emt 00:00:40]} f3 {[%clk
00:35:50]} {[%emt 00:02:16]} 58. Rg7 {[%clk 00:26:12]} {[%emt 00:01:05]} Rh8
{[%clk 00:35:32]} {[%emt 00:00:48]} 59. Kd3 {[%clk 00:25:52]} {[%emt 00:00:50]}
Rd8+ {[%clk 00:35:53]} {[%emt 00:00:10]} 60. Ke4 {[%clk 00:26:11]} {[%emt
00:00:11]} Ke2 {[%clk 00:35:59]} {[%emt 00:00:23]} 61. Rg3 {[%clk 00:24:44]}
{[%emt 00:01:57]} Re8+ {[%clk 00:36:08]} {[%emt 00:00:21]} 62. Kf4 {[%clk
00:24:50]} {[%emt 00:00:24]} f2 {[%clk 00:36:31]} {[%emt 00:00:06]} 63. Rg2
{[%clk 00:25:06]} {[%emt 00:00:14]} Ke1 {[%clk 00:36:51]} {[%emt 00:00:10]} 0-1

[Event "NJSK 2018 Jeugd B"]
[Site "Assen, Netherlands"]
[Date "2018.04.29"]
[Round "1.6"]
[White "Bruil, Rembrandt"]
[Black "Noordenbos, Daan"]
[Result "1/2-1/2"]
[TimeControl "40/90m+30m+30sec/move"]
[WhiteElo "1998"]
[BlackElo "1763"]

1. d4 {[%clk 01:30:57]} {[%emt 00:00:03]} e6 {[%clk 01:30:47]} {[%emt
00:00:15]} 2. c4 {[%clk 01:31:23]} {[%emt 00:00:04]} f5 {[%clk 01:30:48]}
{[%emt 00:00:26]} 3. Nc3 {[%clk 01:30:10]} {[%emt 00:01:44]} Nf6 {[%clk
01:30:45]} {[%emt 00:00:31]} 4. Nf3 {[%clk 01:29:25]} {[%emt 00:01:16]} d6
{[%clk 01:28:43]} {[%emt 00:02:32]} 5. Qc2 {[%clk 01:25:16]} {[%emt 00:04:38]}
g6 {[%clk 01:23:29]} {[%emt 00:05:45]} 6. e4 {[%clk 01:17:04]} {[%emt
00:08:41]} fxe4 {[%clk 01:13:40]} {[%emt 00:10:20]} 7. Nxe4 {[%clk 01:17:28]}
{[%emt 00:00:05]} Nxe4 {[%clk 01:12:56]} {[%emt 00:01:14]} 8. Qxe4 {[%clk
01:17:52]} {[%emt 00:00:06]} Bg7 {[%clk 01:11:53]} {[%emt 00:01:33]} 9. Bd3
{[%clk 01:09:55]} {[%emt 00:08:28]} O-O {[%clk 01:10:13]} {[%emt 00:02:09]} 10.
O-O {[%clk 01:03:41]} {[%emt 00:06:45]} Nc6 {[%clk 01:07:02]} {[%emt 00:03:40]}
11. Bg5 {[%clk 00:51:49]} {[%emt 00:12:23]} Qe8 {[%clk 01:04:54]} {[%emt
00:02:37]} 12. Qh4 {[%clk 00:43:43]} {[%emt 00:08:37]} Bd7 {[%clk 00:34:43]}
{[%emt 00:30:41]} 13. d5 {[%clk 00:33:50]} {[%emt 00:10:23]} Ne5 {[%clk
00:30:39]} {[%emt 00:04:33]} 14. Nxe5 {[%clk 00:32:06]} {[%emt 00:02:15]} Bxe5
{[%clk 00:30:36]} {[%emt 00:00:32]} 15. Rae1 {[%clk 00:29:14]} {[%emt
00:03:23]} Qf7 {[%clk 00:27:48]} {[%emt 00:03:18]} 16. Be4 {[%clk 00:21:10]}
{[%emt 00:08:34]} c6 {[%clk 00:26:54]} {[%emt 00:01:23]} 17. Rd1 {[%clk
00:18:20]} {[%emt 00:03:21]} exd5 {[%clk 00:24:15]} {[%emt 00:03:09]} 18. cxd5
{[%clk 00:18:34]} {[%emt 00:00:16]} c5 {[%clk 00:24:23]} {[%emt 00:00:21]} 19.
b3 {[%clk 00:16:29]} {[%emt 00:02:36]} Rae8 {[%clk 00:21:49]} {[%emt 00:03:03]}
20. Bh6 {[%clk 00:13:05]} {[%emt 00:03:55]} Bf6 {[%clk 00:18:49]} {[%emt
00:03:29]} 21. Qf4 {[%clk 00:12:00]} {[%emt 00:01:35]} Bg7 {[%clk 00:18:44]}
{[%emt 00:00:34]} 22. Qxf7+ {[%clk 00:11:27]} {[%emt 00:01:04]} Rxf7 {[%clk
00:19:05]} {[%emt 00:00:09]} 23. Bxg7 {[%clk 00:11:52]} {[%emt 00:00:06]} Kxg7
{[%clk 00:19:25]} {[%emt 00:00:10]} 24. f3 {[%clk 00:08:40]} {[%emt 00:03:43]}
Re5 {[%clk 00:16:33]} {[%emt 00:03:20]} 25. Rd2 {[%clk 00:07:41]} {[%emt
00:01:29]} Bb5 {[%clk 00:14:46]} {[%emt 00:02:17]} 26. Rfd1 {[%clk 00:08:04]}
{[%emt 00:00:07]} Rfe7 {[%clk 00:15:01]} {[%emt 00:00:15]} 27. Kf2 {[%clk
00:08:04]} {[%emt 00:00:31]} Bd7 {[%clk 00:14:20]} {[%emt 00:01:11]} 28. Rc1
{[%clk 00:05:24]} {[%emt 00:03:10]} b5 {[%clk 00:11:07]} {[%emt 00:03:42]} 29.
Rcc2 {[%clk 00:04:26]} {[%emt 00:01:28]} a5 {[%clk 00:09:45]} {[%emt 00:01:52]}
30. Rc1 {[%clk 00:04:12]} {[%emt 00:00:44]} Kf8 {[%clk 00:07:42]} {[%emt
00:02:34]} 31. h3 {[%clk 00:03:54]} {[%emt 00:00:48]} Rf7 {[%clk 00:07:07]}
{[%emt 00:01:05]} 32. Bc2 {[%clk 00:01:44]} {[%emt 00:02:39]} Rfe7 {[%clk
00:06:42]} {[%emt 00:00:56]} 33. g4 {[%clk 00:01:45]} {[%emt 00:00:29]} b4
{[%clk 00:05:29]} {[%emt 00:01:43]} 34. h4 {[%clk 00:01:21]} {[%emt 00:00:54]}
Rf7 {[%clk 00:04:30]} {[%emt 00:01:29]} 35. Rg1 {[%clk 00:01:08]} {[%emt
00:00:42]} Kg7 {[%clk 00:03:44]} {[%emt 00:01:16]} 36. Rdd1 {[%clk 00:01:07]}
{[%emt 00:00:32]} Bb5 {[%clk 00:03:16]} {[%emt 00:00:58]} 37. Rge1 {[%clk
00:00:56]} {[%emt 00:00:41]} Rfe7 {[%clk 00:03:05]} {[%emt 00:00:40]} 38. Be4
{[%clk 00:01:11]} {[%emt 00:00:15]} Bd7 {[%clk 00:03:04]} {[%emt 00:00:31]} 39.
Rg1 {[%clk 00:01:06]} {[%emt 00:00:35]} a4 {[%clk 00:02:13]} {[%emt 00:01:21]}
1/2-1/2

[Event "NJSK 2018 Jeugd B"]
[Site "Assen, Netherlands"]
[Date "2018.04.29"]
[Round "1.7"]
[White "Ypma, Jord"]
[Black "Van Randtwijk, Mick"]
[Result "0-1"]
[TimeControl "40/90m+30m+30sec/move"]
[WhiteElo "1737"]
[BlackElo "1992"]

1. d4 {[%clk 01:30:51]} {[%emt 00:00:09]} Nf6 {[%clk 01:30:54]} {[%emt
00:00:08]} 2. Bf4 {[%clk 01:30:59]} {[%emt 00:00:23]} e6 {[%clk 01:31:14]}
{[%emt 00:00:08]} 3. e3 {[%clk 01:31:03]} {[%emt 00:00:27]} c5 {[%clk
01:31:25]} {[%emt 00:00:17]} 4. c3 {[%clk 01:30:52]} {[%emt 00:00:41]} Nc6
{[%clk 01:31:25]} {[%emt 00:00:31]} 5. Nf3 {[%clk 01:31:06]} {[%emt 00:00:15]}
d5 {[%clk 01:31:35]} {[%emt 00:00:20]} 6. Nbd2 {[%clk 01:31:18]} {[%emt
00:00:18]} Be7 {[%clk 01:31:34]} {[%emt 00:00:31]} 7. Bd3 {[%clk 01:31:21]}
{[%emt 00:00:27]} Nh5 {[%clk 01:29:59]} {[%emt 00:02:06]} 8. Be5 {[%clk
01:31:33]} {[%emt 00:00:18]} Nxe5 {[%clk 01:28:28]} {[%emt 00:02:01]} 9. Nxe5
{[%clk 01:31:50]} {[%emt 00:00:12]} Nf6 {[%clk 01:27:51]} {[%emt 00:01:07]} 10.
Qf3 {[%clk 01:29:52]} {[%emt 00:02:29]} a6 {[%clk 01:25:48]} {[%emt 00:02:33]}
11. O-O {[%clk 01:29:25]} {[%emt 00:00:56]} Bd6 {[%clk 01:23:35]} {[%emt
00:02:43]} 12. Qg3 {[%clk 01:21:27]} {[%emt 00:08:28]} Bxe5 {[%clk 01:23:04]}
{[%emt 00:01:01]} 13. Qxe5 {[%clk 01:21:18]} {[%emt 00:00:39]} O-O {[%clk
01:18:20]} {[%emt 00:05:15]} 14. f4 {[%clk 01:14:59]} {[%emt 00:06:48]} Ng4
{[%clk 01:12:44]} {[%emt 00:06:06]} 15. Qh5 {[%clk 01:14:48]} {[%emt 00:00:41]}
f5 {[%clk 01:13:07]} {[%emt 00:00:07]} 16. Rfe1 {[%clk 01:00:19]} {[%emt
00:14:59]} Bd7 {[%clk 01:09:25]} {[%emt 00:04:12]} 17. h3 {[%clk 00:57:30]}
{[%emt 00:03:19]} Nf6 {[%clk 01:08:26]} {[%emt 00:01:30]} 18. Qf3 {[%clk
00:52:16]} {[%emt 00:05:44]} Ne4 {[%clk 01:00:35]} {[%emt 00:08:21]} 19. Bxe4
{[%clk 00:50:20]} {[%emt 00:02:25]} fxe4 {[%clk 01:00:57]} {[%emt 00:00:08]} 20.
Qf2 {[%clk 00:48:24]} {[%emt 00:02:27]} cxd4 {[%clk 01:00:49]} {[%emt
00:00:37]} 21. cxd4 {[%clk 00:46:46]} {[%emt 00:02:08]} Rc8 {[%clk 00:59:08]}
{[%emt 00:02:11]} 22. Rac1 {[%clk 00:46:24]} {[%emt 00:00:51]} Qe7 {[%clk
00:54:54]} {[%emt 00:04:44]} 23. Nb3 {[%clk 00:42:51]} {[%emt 00:04:04]} b6
{[%clk 00:55:14]} {[%emt 00:00:10]} 24. Rxc8 {[%clk 00:39:54]} {[%emt
00:03:27]} Rxc8 {[%clk 00:55:35]} {[%emt 00:00:09]} 25. Rc1 {[%clk 00:40:11]}
{[%emt 00:00:12]} Rxc1+ {[%clk 00:47:27]} {[%emt 00:08:38]} 26. Nxc1 {[%clk
00:40:32]} {[%emt 00:00:09]} Qb4 {[%clk 00:47:49]} {[%emt 00:00:09]} 27. a3
{[%clk 00:35:08]} {[%emt 00:05:54]} Qc4 {[%emt 00:04:07]} 28. Qd2 {[%clk
00:34:28]} Bb5 {[%clk 00:43:59]} {[%emt 00:01:53]} 29. Kf2 {[%clk 00:32:36]}
{[%emt 00:02:22]} Qf1+ {[%clk 00:35:36]} {[%emt 00:08:53]} 30. Kg3 {[%clk
00:32:53]} {[%emt 00:00:12]} h6 {[%clk 00:33:28]} {[%emt 00:02:39]} 31. Qc3
{[%clk 00:30:47]} {[%emt 00:02:35]} Kh7 {[%clk 00:33:04]} {[%emt 00:00:55]} 32.
Qd2 {[%clk 00:18:25]} {[%emt 00:12:52]} a5 {[%clk 00:23:29]} {[%emt 00:12:06]}
33. Na2 {[%clk 00:17:32]} {[%emt 00:01:23]} Bc4 {[%clk 00:21:43]} {[%emt
00:02:17]} 34. Nc3 {[%clk 00:16:20]} {[%emt 00:01:41]} b5 {[%clk 00:21:32]}
{[%emt 00:00:41]} 35. Nd1 {[%clk 00:15:04]} {[%emt 00:01:46]} h5 {[%clk
00:20:02]} {[%emt 00:02:00]} 36. Nf2 {[%clk 00:09:29]} {[%emt 00:06:05]} h4+
{[%clk 00:12:38]} {[%emt 00:07:54]} 37. Kh2 {[%clk 00:08:20]} {[%emt 00:01:38]}
Be2 {[%clk 00:12:56]} {[%emt 00:00:14]} 38. Ng4 {[%clk 00:07:31]} {[%emt
00:01:19]} Bxg4 {[%clk 00:13:17]} {[%emt 00:00:08]} 39. hxg4 {[%clk 00:07:52]}
{[%emt 00:00:08]} a4 {[%clk 00:11:13]} {[%emt 00:02:36]} 40. g5 {[%clk
00:05:53]} {[%emt 00:02:28]} Kg6 {[%clk 00:06:03]} {[%emt 00:05:40]} 41. Qc3
{[%clk 00:19:33]} {[%emt 00:16:50]} h3 {[%clk 00:32:02]} {[%emt 00:04:31]} 42.
gxh3 {[%clk 00:11:35]} {[%emt 00:08:27]} Qf2 {[%clk 00:32:15]} {[%emt
00:00:17]} 43. Kh1 {[%clk 00:12:02]} {[%emt 00:00:05]} Qg3 {[%clk 00:32:38]}
{[%emt 00:00:06]} 44. h4 {[%clk 00:10:09]} {[%emt 00:02:23]} Kh5 {[%clk
00:28:12]} {[%emt 00:04:56]} 45. Qd2 {[%clk 00:10:10]} {[%emt 00:00:28]} Kxh4
{[%clk 00:26:47]} {[%emt 00:01:56]} 46. g6 {[%clk 00:04:52]} {[%emt 00:05:48]}
Kh3 {[%clk 00:23:09]} {[%emt 00:04:07]} 47. Qe2 {[%clk 00:03:06]} {[%emt
00:02:16]} Qf3 {[%clk 00:23:27]} {[%emt 00:00:13]} 48. Qxf3 {[%clk 00:03:31]}
{[%emt 00:00:05]} exf3 {[%clk 00:23:51]} {[%emt 00:00:05]} 49. Kg1 {[%clk
00:04:00]} {[%emt 00:00:02]} Kg3 {[%clk 00:24:15]} {[%emt 00:00:05]} 50. Kf1
{[%clk 00:03:49]} {[%emt 00:00:42]} f2 {[%clk 00:24:34]} {[%emt 00:00:11]} 51.
e4 {[%clk 00:04:00]} {[%emt 00:00:18]} dxe4 {[%clk 00:24:56]} {[%emt 00:00:08]}
52. f5 {[%clk 00:04:22]} {[%emt 00:00:08]} e3 {[%clk 00:25:19]} {[%emt
00:00:08]} 53. f6 {[%clk 00:04:31]} {[%emt 00:00:21]} e2+ {[%clk 00:25:27]}
{[%emt 00:00:22]} 54. Kxe2 {[%clk 00:03:37]} {[%emt 00:01:24]} Kg2 {[%clk
00:25:52]} {[%emt 00:00:06]} 55. fxg7 {[%clk 00:03:59]} {[%emt 00:00:07]} f1=Q+
{[%clk 00:26:14]} {[%emt 00:00:08]} 56. Kd2 {[%clk 00:04:18]} {[%emt 00:00:11]}
Qf4+ {[%clk 00:26:11]} {[%emt 00:00:33]} 57. Kc3 {[%clk 00:04:32]} {[%emt
00:00:16]} Qc7+ {[%clk 00:26:30]} {[%emt 00:00:11]} 58. Kb4 {[%clk 00:04:58]}
{[%emt 00:00:04]} Qxg7 {[%clk 00:26:47]} {[%emt 00:00:12]} 0-1

[Event "NJSK 2018 Jeugd B"]
[Site "Assen, Netherlands"]
[Date "2018.04.29"]
[Round "1.8"]
[White "Grutter, Tim"]
[Black "Achuthan, Dylan"]
[Result "1-0"]
[TimeControl "40/90m+30m+30sec/move"]
[WhiteElo "1974"]
[BlackElo "1673"]

1. e4 {[%clk 01:30:58]} {[%emt 00:00:02]} c5 {[%clk 01:30:53]} {[%emt
00:00:08]} 2. Nf3 {[%clk 01:31:22]} {[%emt 00:00:07]} Nc6 {[%clk 01:31:17]}
{[%emt 00:00:06]} 3. Nc3 {[%clk 01:31:43]} {[%emt 00:00:09]} e6 {[%clk
01:30:32]} {[%emt 00:01:12]} 4. d4 {[%clk 01:31:36]} {[%emt 00:00:37]} cxd4
{[%clk 01:30:08]} {[%emt 00:00:54]} 5. Nxd4 {[%clk 01:32:00]} {[%emt 00:00:06]}
Nge7 {[%clk 01:29:35]} {[%emt 00:01:03]} 6. Ndb5 {[%clk 01:28:39]} {[%emt
00:03:51]} Ng6 {[%clk 01:19:33]} {[%emt 00:10:32]} 7. Nd6+ {[%clk 01:21:05]}
{[%emt 00:08:05]} Bxd6 {[%clk 01:19:28]} {[%emt 00:00:35]} 8. Qxd6 {[%clk
01:21:28]} {[%emt 00:00:06]} a6 {[%clk 01:19:07]} {[%emt 00:00:52]} 9. Be3
{[%clk 01:14:15]} {[%emt 00:07:43]} Qe7 {[%clk 01:14:54]} {[%emt 00:04:42]} 10.
Qg3 {[%clk 01:09:45]} {[%emt 00:05:00]} b5 {[%clk 01:06:08]} {[%emt 00:09:16]}
11. Be2 {[%clk 01:01:52]} {[%emt 00:08:23]} Bb7 {[%clk 00:57:25]} {[%emt
00:09:12]} 12. O-O {[%clk 00:57:00]} {[%emt 00:05:23]} O-O {[%clk 00:47:58]}
{[%emt 00:09:56]} 13. f4 {[%clk 00:51:59]} {[%emt 00:05:32]} f5 {[%clk
00:41:08]} {[%emt 00:07:20]} 14. exf5 {[%clk 00:46:41]} {[%emt 00:05:48]} exf5
{[%clk 00:40:46]} {[%emt 00:00:52]} 15. Nd5 {[%clk 00:44:16]} {[%emt 00:02:54]}
Qf7 {[%clk 00:36:23]} {[%emt 00:04:53]} 16. Nb6 {[%clk 00:30:15]} {[%emt
00:14:32]} Rad8 {[%clk 00:27:13]} {[%emt 00:09:39]} 17. Bf3 {[%clk 00:25:48]}
{[%emt 00:04:57]} d5 {[%clk 00:22:39]} {[%emt 00:05:04]} 18. Bc5 {[%clk
00:22:47]} {[%emt 00:03:32]} Rfe8 {[%clk 00:20:44]} {[%emt 00:02:24]} 19. a4
{[%clk 00:18:01]} {[%emt 00:05:16]} Na7 {[%clk 00:16:46]} {[%emt 00:04:29]} 20.
b4 {[%clk 00:15:57]} {[%emt 00:02:34]} bxa4 {[%clk 00:15:04]} {[%emt 00:02:13]}
21. Nxa4 {[%clk 00:16:06]} {[%emt 00:00:21]} Nb5 {[%clk 00:14:14]} {[%emt
00:01:19]} 22. Rad1 {[%clk 00:14:41]} {[%emt 00:01:54]} Nd6 {[%clk 00:11:42]}
{[%emt 00:03:03]} 23. Bxd6 {[%clk 00:14:18]} {[%emt 00:00:53]} Rxd6 {[%clk
00:12:01]} {[%emt 00:00:11]} 24. c4 {[%clk 00:14:10]} {[%emt 00:00:37]} Rdd8
{[%clk 00:11:26]} {[%emt 00:01:05]} 25. Nc5 {[%clk 00:14:08]} {[%emt 00:00:32]}
Ba8 {[%clk 00:10:59]} {[%emt 00:00:58]} 26. cxd5 {[%clk 00:11:25]} {[%emt
00:03:13]} Bxd5 {[%clk 00:10:53]} {[%emt 00:00:36]} 27. Bxd5 {[%clk 00:11:32]}
{[%emt 00:00:22]} Rxd5 {[%clk 00:11:09]} {[%emt 00:00:15]} 28. Nxa6 {[%clk
00:10:26]} {[%emt 00:01:36]} Rxd1 {[%clk 00:09:51]} {[%emt 00:01:48]} 29. Rxd1
{[%clk 00:10:51]} {[%emt 00:00:05]} Qc4 {[%clk 00:09:43]} {[%emt 00:00:38]} 30.
Qd3 {[%clk 00:09:47]} {[%emt 00:01:35]} Qxd3 {[%clk 00:03:35]} {[%emt
00:06:37]} 31. Rxd3 {[%clk 00:10:12]} {[%emt 00:00:05]} Nxf4 {[%clk 00:03:47]}
{[%emt 00:00:17]} 32. Rb3 {[%clk 00:08:46]} {[%emt 00:01:56]} Re2 {[%clk
00:01:00]} {[%emt 00:03:17]} 33. b5 {[%clk 00:07:55]} {[%emt 00:01:22]} Rd2
{[%clk 00:00:51]} {[%emt 00:00:40]} 34. b6 {[%clk 00:06:55]} {[%emt 00:01:29]}
Nd3 {[%clk 00:00:43]} {[%emt 00:00:38]} 35. Rxd3 {[%clk 00:07:03]} {[%emt
00:00:22]} Rxd3 {[%clk 00:00:59]} {[%emt 00:00:15]} 36. b7 {[%clk 00:07:29]}
{[%emt 00:00:03]} Rd1+ {[%clk 00:01:04]} {[%emt 00:00:25]} 37. Kf2 {[%clk
00:07:54]} {[%emt 00:00:05]} Rb1 {[%clk 00:01:12]} {[%emt 00:00:22]} 38. b8=Q+
{[%clk 00:08:16]} {[%emt 00:00:09]} Rxb8 {[%clk 00:01:34]} {[%emt 00:00:07]} 39.
Nxb8 {[%clk 00:08:43]} {[%emt 00:00:03]} Kf7 {[%clk 00:01:41]} {[%emt
00:00:23]} 40. Nc6 {[%clk 00:08:49]} {[%emt 00:00:24]} Kf6 {[%clk 00:01:33]}
{[%emt 00:00:38]} 41. Kf3 {[%clk 00:08:53]} {[%emt 00:00:25]} g5 {[%clk
00:01:34]} {[%emt 00:00:29]} 42. Nd4 {[%clk 00:08:10]} {[%emt 00:01:13]} h5
{[%clk 00:00:58]} {[%emt 00:01:07]} 43. h4 {[%clk 00:06:17]} {[%emt 00:02:23]}
gxh4 {[%clk 00:28:14]} {[%emt 00:03:14]} 44. Kf4 {[%clk 00:36:34]} {[%emt
00:00:13]} h3 {[%clk 00:28:20]} {[%emt 00:00:24]} 45. gxh3 {[%clk 00:36:59]}
{[%emt 00:00:05]} Kg6 {[%clk 00:26:46]} {[%emt 00:02:04]} 46. Nxf5 {[%clk
00:37:24]} {[%emt 00:00:05]} Kh7 {[%clk 00:26:30]} {[%emt 00:00:46]} 47. Kg5
{[%clk 00:37:21]} {[%emt 00:00:33]} Kg8 {[%clk 00:26:48]} {[%emt 00:00:11]} 48.
Kxh5 {[%clk 00:37:37]} {[%emt 00:00:14]} Kh7 {[%clk 00:26:55]} {[%emt
00:00:24]} 49. Kg5 {[%clk 00:38:02]} {[%emt 00:00:05]} Kg8 {[%clk 00:27:00]}
{[%emt 00:00:25]} 50. h4 {[%clk 00:38:28]} {[%emt 00:00:04]} Kh8 {[%clk
00:27:25]} {[%emt 00:00:05]} 51. h5 {[%clk 00:38:55]} {[%emt 00:00:03]} Kh7
{[%clk 00:27:26]} {[%emt 00:00:29]} 52. Kf6 {[%clk 00:39:15]} {[%emt 00:00:10]}
Kh8 {[%clk 00:27:42]} {[%emt 00:00:14]} 53. Kg6 {[%clk 00:39:39]} {[%emt
00:00:06]} Kg8 {[%clk 00:27:58]} {[%emt 00:00:14]} 54. h6 {[%clk 00:39:34]}
{[%emt 00:00:34]} Kh8 {[%clk 00:28:12]} {[%emt 00:00:16]} 55. Nd6 {[%clk
00:39:49]} {[%emt 00:00:16]} Kg8 {[%clk 00:28:33]} {[%emt 00:00:09]} 56. h7+
{[%clk 00:40:13]} {[%emt 00:00:06]} Kh8 {[%clk 00:28:20]} 57. Nf7 {[%clk
00:40:13]} 1-0